bitfinex-derivatives/quotes_SOLF0:USTF0_20241222
["timestamp","ask_amount","ask_price","bid_price","bid_amount"]
[1734855541025,2.7024,185.15,185.1,2.703]
[1734855541321,3.08,185.19,185.06,2.96]
[1734855541524,3.08,185.19,185.07,23.05252369]
[1734855542131,2.7021,185.18,185.07,23.05252369]
[1734855542318,8.0063,185.21,185.07,23.05252369]
[1734855542519,2.7017,185.2,185.14,2.7024]
[1734855542923,8.0063,185.21,185.11,3.08]
[1734855543429,8.0063,185.21,185.17,2.7021]
[1734855543829,3.2117,185.21,185.13,23.05252369]
[1734855544031,3.08,185.26,185.2,2.7016]
[1734855544426,2.7007,185.27,185.22,2.7013]
[1734855544630,3.08,185.28,185.22,2.7013]
[1734855544823,4.9908,185.3,185.16,26.13252369]
[1734855545029,2.7005,185.28,185.23,2.7011]
[1734855545333,2.7005,185.28,185.16,26.13252369]
[1734855545334,3.2673,185.3,185.21,3.08]
[1734855546123,1.5683,185.3,185.21,3.08]
[1734855547332,0.20071,185.31,185.22,23.05252369]
[1734855547532,0.20071,185.31,185.25,23.05252369]
[1734855547731,0.20071,185.31,185.26,3.08]
[1734855547938,0.20071,185.31,185.28,23.05252369]
[1734855548134,3.08,185.41,185.28,23.05252369]
[1734855548335,0.96746724,185.4,185.28,23.05252369]
[1734855548642,5.7787,185.41,185.28,23.05252369]
[1734855549032,5.9868,185.42,185.35,2.6994]
[1734855550142,3.2883,185.42,185.35,2.6994]
[1734855550340,2.6986,185.41,185.35,2.6994]
[1734855550539,3.2883,185.42,185.32,3.08]
[1734855550740,2.6982,185.44,185.32,3.08]
[1734855551241,6.87888034,185.45,185.32,3.08]
[1734855551242,2.6984,185.42,185.32,3.08]
[1734855551952,2.6984,185.42,185.35,2.6994]
[1734855552140,3.08,185.43,185.32,3.08]
[1734855552343,3.3567,185.52,185.37,23.05252369]
[1734855552539,3.3567,185.52,185.4,23.05252369]
[1734855552738,23.05252369,185.58,185.43,23.05252369]
[1734855552943,2.61384138,185.57,185.48,2.6975]
[1734855553142,2.61384138,185.57,185.46,3.08]
[1734855553147,1.6472,185.57,185.46,3.08]
[1734855553645,2.6965,185.56,185.47,2.6977]
[1734855554038,1.6472,185.57,185.46,3.08]
[1734855554239,26.13252369,185.64,185.49,23.05252369]
[1734855554544,1.6472,185.62,185.49,23.05252369]
[1734855554749,1.6472,185.62,185.54,2.6966]
[1734855555037,1.6472,185.62,185.52,3.08]
[1734855555243,2.6959,185.6,185.52,3.08]
[1734855555438,1.6472,185.62,185.49,23.05252369]
[1734855555645,0.96632298,185.61,185.49,3.08]
[1734855555940,2.6964,185.56,185.49,3.08]
[1734855556544,26.13252369,185.57,185.46,2.6977]
[1734855556848,23.05252369,185.54,185.4,3.08]
[1734855557041,23.05252369,185.48,185.32,3.08]
[1734855557240,4.772,185.47,185.32,3.08]
[1734855557442,2.6984,185.42,185.35,2.6993]
[1734855558548,4.772,185.47,185.32,3.08]
[1734855558844,4.772,185.47,185.36,2.6993]
[1734855559046,4.772,185.47,185.32,3.08]
[1734855559247,1.692,185.47,185.37,23.05252369]
[1734855559447,3.08,185.5,185.38,3.08]
[1734855559749,3.08,185.51,185.38,3.08]
[1734855560245,3.08,185.51,185.4,23.05252369]
[1734855560642,5.7771,185.51,185.43,2.6982]
[1734855560838,3.08,185.51,185.43,2.6982]
[1734855561045,3.08,185.51,185.36,3.08]
[1734855561343,23.05252369,185.46,185.3,4.2118]
[1734855561543,3.08,185.45,185.32,23.05252369]
[1734855561742,5.778,185.45,185.38,2.6989]
[1734855562543,3.08,185.45,185.15,58.011623]
[1734855562845,26.52498761,185.44,185.21,1.1322]
[1734855563039,2.6992,185.37,185.26,2.7006]
[1734855563237,3.08,185.36,185.21,4.2122]
[1734855563541,27.52498761,185.44,185.21,4.2122]
[1734855563746,2.6995,185.35,185.28,2.7004]
[1734855563944,3.08,185.34,185.28,2.7004]
[1734855564444,5.7795,185.34,185.26,2.7006]
[1734855564748,3.08,185.34,185.21,4.2122]
[1734855565142,3.08,185.34,185.21,1.1322]
[1734855565345,2.6998,185.33,185.25,2.7008]
[1734855565543,3.08,185.34,185.25,2.7008]
[1734855566147,3.08,185.34,185.26,2.7007]
[1734855566746,2.6997,185.33,185.26,2.7007]
[1734855566947,3.08,185.32,185.26,2.7007]
[1734855567650,3.08,185.32,185.24,2.7009]
[1734855567944,3.08,185.32,185.18,25.98051785]
[1734855567945,1.7014,185.31,185.18,25.98051785]
[1734855568143,3.3532,185.31,185.19,3.08]
[1734855568443,2.7006,185.27,185.21,2.7013]
[1734855568650,2.7006,185.27,185.18,1.08003024]
[1734855568651,3.08,185.26,185.18,1.08003024]
[1734855568948,2.7013,185.22,185.16,2.7022]
[1734855569138,5.7813,185.22,185.16,2.7022]
[1734855569339,2.7012,185.23,185.16,2.7021]
[1734855569545,3.22,185.26,185.11,3.08]
[1734855570050,3.3532,185.31,185.11,3.08]
[1734855570242,4.18800492,185.3,185.13,24.90048761]
[1734855570446,3.22,185.3,185.13,24.90048761]
[1734855570641,3.22,185.3,185.23,2.7011]
[1734855571447,3.3532,185.31,185.18,3.22]
[1734855571644,1.7014,185.31,185.19,1.6262]
[1734855571845,1.7014,185.31,185.19,1.7385]
[1734855572052,1.7014,185.31,185.28,2.7004]
[1734855572255,2.6995,185.35,185.28,2.7004]
[1734855572556,24.90048761,185.58,185.29,28.12048761]
[1734855572744,1.7025,185.49,185.29,29.74668761]
[1734855572944,2.698,185.45,185.36,2.6991]
[1734855573144,1.7025,185.49,185.37,3.22]
[1734855573344,0.96706866,185.48,185.37,3.22]
[1734855573542,2.6982,185.44,185.37,3.22]
[1734855573753,1.7025,185.49,185.37,3.22]
[1734855573942,2.698,185.45,185.37,3.22]
[1734855574145,1.7025,185.49,185.37,3.22]
[1734855574453,0.96708698,185.48,185.37,3.22]
[1734855574951,1.7025,185.49,185.37,3.22]
[1734855575152,0.96704562,185.48,185.37,3.22]
[1734855575451,0.96705151,185.47,185.37,3.22]
[1734855575650,1.7025,185.49,185.37,3.22]
[1734855575851,1.6654,185.46,185.37,3.22]
[1734855576552,1.6654,185.46,185.36,3.22]
[1734855577953,2.6982,185.44,185.37,2.6991]
[1734855578551,1.6654,185.46,185.37,3.22]
[1734855579645,1.6654,185.46,185.41,2.6984]
[1734855579844,1.6654,185.46,185.37,3.22]
[1734855580349,4.3632,185.46,185.4,2.6986]
[1734855580852,1.6654,185.46,185.3,1.8211]
[1734855581052,1.7213,185.45,185.31,3.22]
[1734855581255,1.7213,185.45,185.29,1.6262]
[1734855581553,0.96720078,185.44,185.29,3.22]
[1734855581943,0.96720078,185.44,185.26,58.011623]
[1734855581944,1.96720078,185.44,185.26,58.011623]
[1734855582145,22.91471747,185.4,185.26,58.011623]
[1734855582350,22.91471747,185.37,185.26,58.011623]
[1734855582544,2.6997,185.33,185.26,60.712223]
[1734855582750,2.6997,185.33,185.26,2.7006]
[1734855582950,2.7001,185.3,185.23,5.921]
[1734855583348,3.22,185.31,185.18,84.14634047]
[1734855583556,5.9202,185.3,185.23,2.7011]
[1734855583856,3.22,185.3,185.23,2.7011]
[1734855584051,3.22,185.3,185.18,26.13471747]
[1734855584651,3.22,185.3,185.18,3.22]
[1734855585457,2.7006,185.27,185.21,2.7014]
[1734855586353,2.7004,185.29,185.21,2.7014]
[1734855586759,1.6259,185.28,185.21,2.7014]
[1734855587059,1.6259,185.28,185.2,2.7016]
[1734855587259,1.6259,185.28,185.18,26.13471747]
[1734855587859,2.7006,185.27,185.21,2.7013]
[1734855588354,1.6259,185.28,185.18,22.91471747]
[1734855588556,1.6259,185.28,185.2,2.7016]
[1734855588862,1.6259,185.28,185.17,1.5902]
[1734855589056,1.6259,185.28,185.24,2.701]
[1734855589258,1.6259,185.28,185.21,3.22]
[1734855589455,1.7213,185.35,185.23,22.91471747]
[1734855589654,3.3888,185.35,185.26,22.91471747]
[1734855590553,3.3888,185.35,185.22,22.91471747]
[1734855590951,3.3888,185.35,185.22,26.13471747]
[1734855591151,3.3888,185.35,185.22,22.91471747]
[1734855591561,2.7,185.32,185.26,2.7006]
[1734855591761,3.3888,185.35,185.22,22.91471747]
[1734855592461,3.3888,185.35,185.19,26.13471747]
[1734855592663,0.96777972,185.34,185.19,26.13471747]
[1734855592961,3.3888,185.35,185.19,26.13471747]
[1734855593759,2.6999,185.32,185.19,26.13471747]
[1734855594063,3.22,185.31,185.22,22.91471747]
[1734855594257,3.22,185.31,185.28,2.7003]
[1734855594457,2.6996,185.34,185.22,22.91471747]
[1734855594653,5.9196,185.34,185.22,22.91471747]
[1734855594962,5.9196,185.34,185.29,2.7002]
[1734855595164,2.6997,185.33,185.24,3.22]
[1734855595561,2.6997,185.33,185.27,2.7004]
[1734855595864,3.22,185.34,185.24,3.22]
[1734855596056,5.9195,185.34,185.29,2.7003]
[1734855597059,2.6999,185.32,185.27,2.7006]
[1734855597962,3.22,185.34,185.22,22.91471747]
[1734855598162,2.6998,185.32,185.27,2.7005]
[1734855598364,3.22,185.34,185.22,26.13471747]
[1734855598572,6.6088,185.35,185.22,26.13471747]
[1734855598767,9.3083,185.35,185.22,26.13471747]
[1734855599270,2.6996,185.34,185.28,2.7003]
[1734855599670,6.6088,185.35,185.25,22.91471747]
[1734855599869,1.0,185.39,185.28,22.91471747]
[1734855600071,3.22,185.38,185.28,22.91471747]
[1734855600371,3.22,185.38,185.28,24.64931747]
[1734855600772,3.22,185.38,185.25,26.13471747]
[1734855600964,2.6998,185.34,185.27,2.7005]
[1734855601169,3.22,185.38,185.23,4.8092]
[1734855601363,22.91471747,185.36,185.19,80.92634047]
[1734855601669,0.96761712,185.35,185.19,80.92634047]
[1734855602067,2.7006,185.28,185.19,22.91471747]
[1734855602272,3.22,185.28,185.19,22.91471747]
[1734855602472,3.22,185.32,185.19,22.91471747]
[1734855602663,2.7002,185.3,185.19,22.91471747]
[1734855602871,3.22,185.32,185.19,22.91471747]
[1734855603173,4.22,185.35,185.22,22.91471747]
[1734855603471,4.22,185.35,185.25,22.91471747]
[1734855603472,3.22,185.35,185.25,22.91471747]
[1734855603668,3.22,185.35,185.3,2.7001]
[1734855604167,3.22,185.35,185.25,22.91471747]
[1734855604364,5.9195,185.35,185.3,2.7002]
[1734855605773,2.6998,185.33,185.29,2.7003]
[1734855605973,3.22,185.35,185.29,2.7003]
[1734855606464,3.22,185.35,185.25,22.91471747]
[1734855606465,5.9195,185.35,185.3,2.7001]
[1734855607372,22.91471747,185.4,185.28,26.13471747]
[1734855607373,3.22,185.4,185.28,26.13471747]
[1734855607577,3.22,185.4,185.29,3.22]
[1734855607872,5.9189,185.4,185.34,2.6995]
[1734855608570,2.699,185.39,185.29,3.22]
[1734855608773,2.699,185.39,185.33,2.6998]
[1734855609071,3.22,185.4,185.28,22.91471747]
[1734855609270,3.22,185.4,185.27,1.6117]
[1734855609466,1.6567,185.39,185.27,1.6117]
[1734855609674,2.6996,185.35,185.29,2.7002]
[1734855609968,3.22,185.35,185.26,1.652]
[1734855610468,3.22,185.35,185.22,22.91471747]
[1734855610673,22.91471747,185.34,185.2,1.5982]
[1734855610863,0.96777696,185.33,185.2,1.5982]
[1734855611067,22.91471747,185.31,185.16,59.713723]
[1734855611270,5.87334841,185.3,185.16,59.713723]
[1734855611470,5.87334841,185.3,185.16,1.7021]
[1734855611471,4.9054,185.3,185.16,1.7021]
[1734855611872,4.9054,185.3,185.2,2.7016]
[1734855611873,2.7008,185.26,185.2,2.7016]
[1734855612268,4.9054,185.3,185.16,1.7021]
[1734855612670,2.7007,185.27,185.16,1.7021]
[1734855613075,4.9054,185.3,185.16,1.7021]
[1734855613273,2.7005,185.28,185.2,2.7017]
[1734855613475,2.7005,185.28,185.16,1.7021]
[1734855613677,4.9054,185.3,185.16,1.7021]
[1734855614071,4.9054,185.3,185.14,1.6531]
[1734855614271,0.96799925,185.29,185.14,1.6531]
[1734855614678,1.96799925,185.29,185.14,1.6531]
[1734855614975,0.96803742,185.28,185.14,1.6531]
[1734855615170,0.9681646,185.27,185.12,23.99509776]
[1734855615768,2.7013,185.23,185.16,2.7022]
[1734855615973,3.22,185.22,185.12,23.99509776]
[1734855616469,1.0,185.27,185.12,1.08038029]
[1734855616777,1.6854,185.3,185.18,22.91471747]
[1734855616778,3.22,185.28,185.18,22.91471747]
[1734855617169,3.22,185.28,185.19,1.6006]
[1734855617579,3.22,185.28,185.26,2.7008]
[1734855617778,3.313,185.32,185.22,3.22]
[1734855618171,1.5817,185.32,185.22,3.22]
[1734855618373,1.5817,185.32,185.21,22.91471747]
[1734855619573,2.7005,185.28,185.23,2.7012]
[1734855619780,5.9205,185.28,185.23,2.7012]
[1734855620080,1.5817,185.32,185.21,22.91471747]
[1734855620278,4.8017,185.32,185.21,22.91471747]
[1734855620582,25.69654441,185.41,185.24,22.91471747]
[1734855620776,3.22,185.38,185.27,22.91471747]
[1734855620976,3.22,185.38,185.28,1.7166]
[1734855622576,3.22,185.38,185.35,2.6995]
[1734855623182,6.00655145,185.41,185.35,2.6995]
[1734855623377,3.30795145,185.41,185.31,3.22]
[1734855623584,3.3581,185.47,185.33,22.91471747]
[1734855623780,4.18715128,185.46,185.33,22.91471747]
[1734855623978,3.22,185.46,185.33,22.91471747]
[1734855624179,2.6984,185.43,185.33,22.91471747]
[1734855625388,2.6981,185.45,185.33,22.91471747]
[1734855625685,3.22,185.44,185.33,22.91471747]
[1734855625884,3.22,185.44,185.38,2.6989]
[1734855626488,6.0559,185.47,185.41,2.6986]
[1734855626685,9.2759,185.47,185.41,2.6986]
[1734855626879,22.91471747,185.52,185.37,1.6877]
[1734855627085,2.6976,185.48,185.37,1.6877]
[1734855627285,3.22,185.51,185.37,1.6877]
[1734855627684,0.96696081,185.5,185.37,1.6877]
[1734855628684,2.6981,185.45,185.37,1.6877]
[1734855629081,3.22,185.49,185.37,1.6877]
[1734855629281,22.91471747,185.46,185.29,24.62481747]
[1734855629480,4.9646,185.45,185.3,1.6877]
[1734855629791,2.699,185.39,185.32,2.6999]
[1734855630086,3.18,185.38,185.32,2.6999]
[1734855630385,3.18,185.38,185.3,1.6877]
[1734855630586,3.18,185.4,185.3,1.6877]
[1734855630989,5.8788,185.4,185.33,2.6998]
[1734855631285,3.18,185.4,185.3,1.6877]
[1734855632084,3.18,185.4,185.32,22.91471747]
[1734855632284,3.18,185.43,185.32,22.91471747]
[1734855632980,3.18,185.43,185.35,2.6995]
[1734855633180,3.18,185.43,185.32,22.91471747]
[1734855633388,2.6982,185.44,185.32,22.91471747]
[1734855633581,3.18,185.43,185.32,22.91471747]
[1734855634184,5.8783,185.43,185.37,2.6991]
[1734855636083,5.8783,185.43,185.32,26.09471747]
[1734855636285,5.8783,185.43,185.38,2.6991]
[1734855636881,3.18,185.43,185.36,2.6992]
[1734855637181,2.6985,185.42,185.36,2.6992]
[1734855637886,2.6987,185.41,185.36,2.6992]
[1734855638086,2.6987,185.41,185.32,22.91471747]
[1734855638087,3.18,185.43,185.34,2.6995]
[1734855638278,3.18,185.43,185.3,4.8677]
[1734855638481,2.6988,185.4,185.3,4.8677]
[1734855639085,5.8788,185.4,185.3,4.8677]
[1734855639285,3.18,185.4,185.3,1.6877]
[1734855639485,3.18,185.4,185.26,22.91471747]
[1734855639682,26.09471747,185.4,185.23,3.3834]
[1734855639879,2.6997,185.34,185.23,3.3834]
[1734855640084,3.18,185.33,185.23,3.3834]
[1734855640587,2.6999,185.32,185.23,6.5634]
[1734855640782,3.18,185.33,185.23,6.5634]
[1734855641182,2.7002,185.31,185.26,2.7007]
[1734855641585,3.18,185.33,185.22,22.91471747]
[1734855641797,3.3485,185.32,185.22,2.7013]
[1734855642087,3.3485,185.32,185.19,22.91471747]
[1734855642289,1.5916,185.31,185.21,2.7014]
[1734855642486,1.5916,185.31,185.16,22.91471747]
[1734855642791,2.7012,185.24,185.15,2.7024]
[1734855642991,3.18,185.23,185.13,24.63221747]
[1734855643686,3.18,185.23,185.18,2.7018]
[1734855644080,3.18,185.23,185.19,2.7018]
[1734855644383,3.18,185.23,185.13,24.63221747]
[1734855644585,3.18,185.23,185.16,22.91471747]
[1734855644982,3.18,185.23,185.2,2.7015]
[1734855645285,3.18,185.23,185.16,22.91471747]
[1734855645483,25.50631747,185.31,185.16,22.91471747]
[1734855645784,2.7007,185.28,185.16,22.91471747]
[1734855647081,2.7002,185.3,185.16,22.91471747]
[1734855647281,3.18,185.3,185.19,22.91471747]
[1734855648081,2.7008,185.27,185.21,2.7014]
[1734855648490,3.18,185.3,185.16,22.91471747]
[1734855650087,3.18,185.3,185.15,3.18]
[1734855650284,3.18,185.3,185.13,1.7175]
[1734855650987,3.18,185.3,185.15,22.91471747]
[1734855651696,3.18,185.29,185.15,22.91471747]
[1734855651990,5.8804,185.29,185.15,22.91471747]
[1734855652288,3.18,185.29,185.18,22.91471747]
[1734855652487,5.8804,185.29,185.18,26.09471747]
[1734855653388,5.8804,185.29,185.23,2.7012]
[1734855654896,2.7007,185.27,185.22,2.7014]
[1734855655197,3.18,185.29,185.18,26.09471747]
[1734855655393,3.3485,185.32,185.21,22.91471747]
[1734855655697,3.3485,185.32,185.27,2.7006]
[1734855656400,6.5285,185.32,185.27,2.7006]
[1734855656803,2.7002,185.3,185.25,2.7008]
[1734855657004,2.7002,185.3,185.22,1.7374]
[1734855657205,6.5285,185.32,185.22,1.7374]
[1734855657502,6.5285,185.32,185.23,2.7012]
[1734855657503,2.7004,185.29,185.23,2.7012]
[1734855658202,6.5285,185.32,185.23,2.7012]
[1734855658601,6.5285,185.32,185.24,2.7011]
[1734855658801,6.5285,185.32,185.22,1.7374]
[1734855660002,6.5285,185.32,185.19,4.8465]
[1734855660306,6.5285,185.32,185.22,2.7014]
[1734855660508,6.5285,185.32,185.19,4.8465]
[1734855660710,3.16,185.32,185.19,4.8465]
[1734855661504,2.7004,185.3,185.24,2.701]
[1734855661711,3.16,185.32,185.24,2.701]
[1734855661913,3.16,185.32,185.19,4.8465]
[1734855662114,3.16,185.32,185.22,2.7014]
[1734855662513,2.7008,185.26,185.22,2.7014]
[1734855662716,3.16,185.27,185.15,1.598]
[1734855662902,3.16,185.26,185.15,1.598]
[1734855663107,3.16,185.25,185.15,1.598]
[1734855663916,3.16,185.25,185.1,0.1144]
[1734855664118,1.6316,185.24,185.1,0.1144]
[1734855664321,2.7017,185.2,185.15,2.7023]
[1734855664516,3.16,185.21,185.1,0.1144]
[1734855665118,5.8615,185.21,185.16,2.7023]
[1734855665916,17.27216044,185.21,185.09,1.6331]
[1734855666116,24.60635222,185.2,185.09,1.6331]
[1734855666919,24.60635222,185.2,185.04,26.12385222]
[1734855667219,2.7028,185.13,185.08,2.7034]
[1734855667519,2.7028,185.13,185.04,26.12385222]
[1734855667520,3.16,185.13,185.04,3.16]
[1734855667728,2.7029,185.12,185.07,2.7035]
[1734855668324,3.16,185.13,185.07,2.7035]
[1734855669026,1.6425,185.2,185.11,2.703]
[1734855669325,1.6425,185.2,185.03,1.6704]
[1734855669326,1.6425,185.2,185.06,3.16]
[1734855669523,2.702,185.18,185.07,22.96385222]
[1734855670321,3.16,185.19,185.14,2.7024]
[1734855671323,3.16,185.21,185.16,2.7021]
[1734855671921,4.3328,185.24,185.19,2.7018]
[1734855672121,1.6316,185.24,185.19,2.7018]
[1734855672328,1.632,185.29,185.22,2.7013]
[1734855672329,4.3325,185.29,185.22,2.7013]
[1734855672529,3.16,185.28,185.22,2.7013]
[1734855672824,3.16,185.28,185.16,26.12385222]
[1734855673031,3.16,185.28,185.2,2.7015]
[1734855673328,3.16,185.28,185.16,26.12385222]
[1734855673920,2.7008,185.26,185.2,2.7015]
[1734855674529,26.12385222,185.28,185.16,3.16]
[1734855674731,22.96385222,185.25,185.12,1.6736]
[1734855675128,22.96385222,185.25,185.11,1.6981]
[1734855676030,26.12385222,185.28,185.11,1.6981]
[1734855676230,0.96813807,185.27,185.11,1.6981]
[1734855676431,2.7012,185.23,185.16,2.7022]
[1734855676733,2.7012,185.23,185.13,3.16]
[1734855676933,3.16,185.22,185.11,1.6981]
[1734855678130,2.701,185.25,185.2,2.7017]
[1734855678330,22.96385222,185.28,185.2,2.7017]
[1734855678526,3.16,185.27,185.2,2.7017]
[1734855678724,3.16,185.27,185.15,3.16]
[1734855678934,3.16,185.27,185.12,3.2748]
[1734855679335,2.7012,185.24,185.18,2.7019]
[1734855680040,3.16,185.27,185.12,3.2748]
[1734855680239,3.16,185.27,185.16,2.7021]
[1734855680737,3.16,185.27,185.12,3.2748]
[1734855681136,2.701,185.25,185.12,3.2748]
[1734855681736,2.7005,185.28,185.14,22.96385222]
[1734855682035,3.16,185.27,185.15,1.7027]
[1734855682239,3.16,185.27,185.23,2.7012]
[1734855682940,4.8658,185.29,185.24,2.7009]
[1734855683237,1.7058,185.29,185.24,2.7009]
[1734855683438,1.7058,185.29,185.19,1.6026]
[1734855683439,5.9476,185.35,185.23,26.12385222]
[1734855683638,3.2481,185.35,185.24,3.16]
[1734855684034,3.2481,185.35,185.29,2.7003]
[1734855684341,3.2481,185.35,185.24,3.16]
[1734855684536,2.6998,185.33,185.28,2.7005]
[1734855684842,3.2481,185.35,185.2,22.96385222]
[1734855685141,2.6999,185.32,185.27,2.7006]
[1734855685341,3.2481,185.35,185.22,3.16]
[1734855685636,2.6998,185.34,185.29,2.7003]
[1734855685839,3.2481,185.35,185.23,22.96385222]
[1734855686034,1.5775,185.35,185.23,22.96385222]
[1734855686240,1.5775,185.35,185.24,1.6433]
[1734855686942,1.5775,185.35,185.25,3.16]
[1734855687446,1.6913,185.4,185.35,2.6994]
[1734855687645,1.6913,185.4,185.3,3.16]
[1734855688040,1.6913,185.4,185.37,2.6991]
[1734855690339,3.30768403,185.41,185.37,2.6991]
[1734855691236,2.6989,185.39,185.3,3.16]
[1734855691435,3.30768403,185.41,185.27,1.702]
[1734855691641,14.09275043,185.4,185.27,1.702]
[1734855691841,4.12746981,185.39,185.27,1.702]
[1734855692042,3.16,185.39,185.27,1.702]
[1734855692237,3.3893,185.38,185.22,14.09275043]
[1734855692448,3.3893,185.38,185.21,58.67020577]
[1734855692449,14.09275043,185.37,185.21,58.67020577]
[1734855692751,14.09275043,185.34,185.2,1.7209]
[1734855692946,4.12759448,185.33,185.18,3.16]
[1734855693149,2.7006,185.28,185.22,2.7012]
[1734855693347,2.7006,185.28,185.18,3.16]
[1734855693549,5.8606,185.28,185.18,3.16]
[1734855693847,3.16,185.28,185.16,14.09275043]
[1734855694149,3.16,185.28,185.17,3.16]
[1734855695348,3.16,185.28,185.23,2.7011]
[1734855696248,3.16,185.31,185.22,3.16]
[1734855697039,24.50423388,185.36,185.22,3.16]
[1734855697239,4.7314,185.36,185.22,26.09283388]
[1734855697545,4.7314,185.36,185.23,1.671]
[1734855697748,4.7314,185.36,185.23,3.3827]
[1734855697946,4.7314,185.36,185.31,2.7]
[1734855698541,7.4308,185.36,185.31,2.7]
[1734855699450,2.6998,185.34,185.27,2.7005]
[1734855699654,2.6998,185.34,185.23,6.5427]
[1734855700042,4.7314,185.36,185.21,3.16]
[1734855701047,0.96766336,185.35,185.21,3.16]
[1734855701254,2.7003,185.3,185.24,2.701]
[1734855701551,5.8603,185.3,185.24,2.701]
[1734855701755,2.7007,185.27,185.22,2.7013]
[1734855702346,2.7008,185.26,185.2,2.7015]
[1734855702545,3.3364,185.29,185.2,2.7015]
[1734855702754,3.3364,185.29,185.16,1.6606]
[1734855702953,2.7009,185.25,185.16,1.6606]
[1734855704257,3.3364,185.29,185.16,24.59343388]
[1734855704456,2.7005,185.28,185.16,24.59343388]
[1734855704658,3.3364,185.29,185.16,24.59343388]
[1734855704858,1.664,185.27,185.16,24.59343388]
[1734855705951,1.664,185.27,185.22,2.7013]
[1734855706256,1.664,185.27,185.16,24.59343388]
[1734855706463,1.664,185.27,185.23,2.7011]
[1734855707462,4.3647,185.27,185.21,2.7014]
[1734855707657,1.664,185.27,185.21,2.7014]
[1734855708562,2.7008,185.26,185.21,2.7014]
[1734855708864,1.664,185.27,185.16,24.59343388]
[1734855709559,1.664,185.27,185.23,2.7012]
[1734855709965,1.664,185.27,185.16,24.59343388]
[1734855710163,1.664,185.27,185.24,2.7011]
[1734855710463,4.3647,185.27,185.16,24.59343388]
[1734855710956,4.3647,185.27,185.21,2.7014]
[1734855711261,1.664,185.27,185.16,24.59343388]
[1734855711658,1.664,185.27,185.16,22.93283388]
[1734855712162,2.7011,185.25,185.19,2.7017]
[1734855712359,1.664,185.27,185.19,2.7017]
[1734855713063,2.7012,185.23,185.18,2.7019]
[1734855713562,2.7014,185.22,185.16,2.7021]
[1734855714066,2.7014,185.22,185.14,3.16]
[1734855715369,2.7014,185.22,185.18,2.702]
[1734855715565,2.7014,185.22,185.14,3.16]
[1734855715968,2.7014,185.22,185.17,2.702]
[1734855716264,2.7014,185.22,185.14,3.16]
[1734855716668,3.16,185.24,185.14,3.16]
[1734855716865,3.16,185.24,185.14,17.28016809]
[1734855717168,1.664,185.27,185.14,17.28016809]
[1734855717763,2.7008,185.26,185.14,17.28016809]
[1734855718164,2.7003,185.3,185.26,2.7008]
[1734855718370,4.8767,185.36,185.22,3.16]
[1734855718566,4.12777626,185.35,185.22,3.16]
[1734855718775,2.6999,185.33,185.27,2.7006]
[1734855718968,3.16,185.35,185.27,2.7006]
[1734855719466,2.7,185.32,185.27,2.7006]
[1734855721468,3.04,185.33,185.29,2.7003]
[1734855721772,3.04,185.33,185.23,3.04]
[1734855722168,2.6999,185.32,185.27,2.7005]
[1734855722364,3.04,185.33,185.23,3.04]
[1734855722772,2.7001,185.31,185.26,2.7008]
[1734855726469,5.7399,185.32,185.22,3.04]
[1734855727177,5.7399,185.32,185.27,2.7005]
[1734855727580,3.04,185.32,185.22,3.04]